bitfinex/quotes_ETHUSD_20260129
["timestamp","ask_amount","ask_price","bid_price","bid_amount"]
[1769685796206,13.48715548,2929.1,2928.6,0.002]
[1769685796405,0.03402634,2928.8,2928.0,0.002]
[1769685796608,13.52118182,2928.4,2927.5,0.0016]
[1769685796805,0.03402634,2928.2,2927.5,0.0016]
[1769685797108,13.52118182,2928.2,2927.5,0.0016]
[1769685797577,14.3409285,2928.2,2927.5,0.0016]
[1769685797790,1.35211818,2928.3,2927.5,0.0016]
[1769685798118,14.34087482,2928.4,2927.5,0.0016]
[1769685798326,14.37490116,2928.4,2927.5,0.0016]
[1769685798625,13.48715548,2928.3,2927.5,0.0016]
[1769685799390,14.20215548,2928.3,2927.5,0.0016]
[1769685799591,0.85376681,2928.2,2927.5,0.0016]
[1769685799929,0.85376681,2928.2,2926.9,3.41646737]
[1769685799930,13.9855275,2928.1,2926.9,3.41646737]
[1769685800427,13.9855275,2928.1,2926.9,0.85414602]
[1769685800604,13.9855275,2928.1,2926.8,0.85415637]
[1769685800799,13.48715548,2927.9,2926.8,0.85416325]
[1769685801004,1.34871555,2927.8,2926.8,0.85416325]
[1769685801324,0.49837202,2928.1,2926.9,12.86106637]
[1769685801503,13.92358248,2928.4,2926.9,12.86106637]
[1769685801504,13.92358248,2928.4,2926.9,12.82690053]
[1769685801701,13.92358248,2928.4,2927.1,12.82690053]
[1769685801908,0.436427,2928.4,2927.2,12.86106286]
[1769685802236,13.48795548,2929.0,2927.1,12.82690053]
[1769685802398,13.48795548,2929.0,2927.3,12.82690053]
[1769685802399,1.43414766,2928.9,2927.3,12.82690053]
[1769685803638,1.46828332,2928.9,2927.5,12.82690053]
[1769685803931,1.46828332,2928.9,2927.6,13.68084232]
[1769685804095,0.03413566,2928.9,2927.6,13.68084232]
[1769685804293,0.0008,2929.0,2927.6,13.68084232]
[1769685804644,0.03493566,2929.0,2927.6,13.68084232]
[1769685804841,0.0008,2929.0,2927.8,12.82690053]
[1769685805005,0.03493566,2929.0,2927.8,12.82690053]
[1769685805228,0.0008,2929.0,2927.9,13.48462648]
[1769685805740,0.0008,2929.0,2928.0,0.85382513]
[1769685806050,0.0008,2929.0,2928.1,13.68364151]
[1769685808444,0.0008,2929.0,2928.3,13.68364151]
[1769685808630,0.33026057,2929.4,2928.4,13.68364151]
[1769685808830,0.03413566,2929.3,2928.5,15.05174325]
[1769685809353,0.33026057,2929.4,2928.5,15.05174325]
[1769685810335,0.33026057,2929.4,2928.6,14.53729171]
[1769685810528,0.03413566,2929.9,2928.7,13.68364151]
[1769685810723,0.0008,2930.0,2928.6,0.8536502]
[1769685810724,13.1344388,2929.8,2928.6,0.8536502]
[1769685810938,14.41374702,2929.7,2928.6,1.51137615]
[1769685811143,0.03413566,2929.6,2928.6,1.51137615]
[1769685811306,14.41374702,2929.7,2928.6,1.51137615]
[1769685811639,0.03413566,2929.6,2928.6,1.51137615]
[1769685812806,0.03413566,2929.6,2928.6,15.2983522]
[1769685813038,0.03413566,2929.9,2928.8,13.78697605]
[1769685813427,0.0008,2930.0,2928.8,13.78697605]
[1769685813634,0.03493566,2930.0,2928.8,13.78697605]
[1769685813814,0.03493566,2930.0,2929.0,13.78697605]
[1769685814648,0.0008,2930.0,2929.0,13.78697605]
[1769685814941,0.03493566,2930.0,2929.0,13.78697605]
[1769685815132,0.03493566,2930.0,2929.1,0.85350448]
[1769685815843,0.0008,2930.0,2929.1,0.85350448]
[1769685816043,0.03493566,2930.0,2929.1,0.85350448]
[1769685816539,0.001,2929.4,2929.1,0.85350448]
[1769685819660,0.001,2929.4,2928.9,3.4141467]
[1769685819838,0.001,2929.4,2928.8,0.85359191]
[1769685820219,0.001,2929.4,2928.8,14.64056796]
[1769685820419,0.001,2929.4,2928.9,0.03029521]
[1769685821345,0.001,2929.4,2928.8,14.64056796]
[1769685828250,0.001,2929.4,2929.0,0.002]
[1769685832943,0.001,2929.4,2928.8,0.002]
[1769685832944,15.28868401,2929.4,2928.8,0.002]
[1769685833143,15.25454835,2929.4,2928.8,0.002]
[1769685834649,0.03413566,2929.3,2928.8,0.002]
[1769685835052,1.38777712,2929.4,2928.8,0.002]
[1769685835270,0.001,2929.4,2928.8,0.002]
[1769685836674,1.3620579,2929.4,2928.8,0.002]
[1769685837378,0.03413566,2929.3,2928.8,0.002]
[1769685838178,13.60957903,2929.3,2928.8,0.002]
[1769685838348,13.60957903,2929.3,2928.1,13.66141248]
[1769685838349,13.57544337,2929.3,2927.8,13.66141248]
[1769685838672,13.57544337,2929.1,2928.2,0.85375719]
[1769685838874,13.57544337,2929.1,2928.1,0.85378101]
[1769685839250,13.57544337,2928.9,2927.7,0.85391262]
[1769685840750,13.57544337,2928.9,2927.7,14.5153251]
[1769685840951,16.01144013,2929.2,2927.7,14.5153251]
[1769685841251,14.46309201,2929.1,2927.7,14.5153251]
[1769685841450,14.42895635,2929.1,2928.3,0.002]
[1769685841645,14.42895635,2929.1,2927.7,0.85391262]
[1769685842067,0.03413566,2929.0,2928.0,0.002]
[1769685842273,13.57544337,2928.9,2928.0,0.002]
[1769685843383,14.42901053,2928.9,2928.0,0.002]
[1769685843679,13.57544337,2928.8,2928.0,0.002]
[1769685845579,13.57544337,2928.6,2928.0,0.002]
[1769685845748,15.02176338,2928.5,2927.6,0.002]
[1769685847383,0.8537085,2928.4,2927.6,0.002]
[1769685847584,15.87546239,2928.5,2927.6,0.002]
[1769685848380,1.44632001,2928.5,2927.6,0.002]
[1769685848587,0.03413566,2928.5,2927.6,0.002]
[1769685849001,13.57544337,2928.4,2927.6,0.002]
[1769685849503,14.42916572,2928.4,2927.6,0.002]
[1769685849869,14.46319206,2928.4,2927.1,0.002]
[1769685850077,13.57544337,2928.1,2927.1,0.002]
[1769685850371,13.57544337,2927.9,2927.1,0.002]
[1769685851482,13.57544337,2927.7,2927.1,0.002]
[1769685851858,13.57544337,2927.5,2926.6,0.0245304]
[1769685852089,0.715,2927.6,2926.6,0.0245304]
[1769685852090,13.57544337,2927.3,2926.6,0.0245304]
[1769685852474,15.00448771,2927.4,2926.6,0.0245304]
[1769685852804,13.57544337,2927.4,2926.6,0.0245304]
[1769685853298,13.57544337,2927.4,2926.6,0.85420621]
[1769685853665,13.57544337,2927.4,2927.3,0.002]
[1769685854087,14.4294435,2927.4,2927.3,0.002]
[1769685854269,13.57544337,2927.4,2927.3,0.002]
[1769685854606,15.35996722,2927.4,2927.3,0.002]
[1769685854901,16.21396735,2927.4,2926.4,0.006]
[1769685855467,15.35996722,2927.4,2926.4,0.006]
[1769685855663,16.21397406,2927.4,2926.5,0.85426277]
[1769685855899,1.78452385,2927.4,2926.5,0.85426277]
[1769685856201,0.03413566,2927.6,2926.6,14.08914626]
[1769685856407,0.03413566,2927.8,2926.6,14.08914626]
[1769685856909,13.60957903,2927.8,2926.6,14.08914626]
[1769685857108,13.57544337,2927.8,2926.5,0.85426277]
[1769685857407,13.57544337,2927.6,2926.5,0.85426277]
[1769685857564,5.48784622,2928.0,2926.5,0.85426277]
[1769685857565,13.60957903,2927.5,2926.5,0.85426277]
[1769685857771,14.42942286,2927.5,2926.5,0.85426277]
[1769685858204,0.93647884,2927.9,2926.6,13.69558182]
[1769685858395,0.03413566,2928.2,2926.6,13.66141248]
[1769685858594,0.03513566,2928.3,2926.8,13.66141248]
[1769685858800,5.35682274,2929.0,2926.7,1.4857357]
[1769685858801,0.17275768,2929.3,2927.4,13.66141248]
[1769685859618,0.17275768,2929.3,2927.8,13.66141248]
[1769685859901,0.17275768,2929.3,2928.0,13.66141248]
[1769685861583,0.17275768,2929.3,2928.2,13.66141248]
[1769685861983,0.17275768,2929.3,2928.1,0.85379597]
[1769685861984,0.17275768,2929.3,2928.3,13.66141248]
[1769685862182,0.85404248,2930.0,2928.2,13.66141248]
[1769685862387,0.85404248,2930.0,2928.1,0.85379597]
[1769685862388,14.42949458,2930.0,2928.4,13.66141248]
[1769685862978,13.57624337,2930.0,2928.4,13.66141248]
[1769685863177,0.03402634,2929.1,2926.9,14.78792712]
[1769685863378,0.03402634,2929.1,2928.0,0.85381729]
[1769685863379,13.57544337,2928.7,2928.0,0.85381729]
[1769685863604,0.8536084,2928.8,2927.6,0.85394179]
[1769685863807,1.36094697,2929.0,2927.6,14.51535427]
[1769685864011,0.88749039,2929.3,2927.6,14.51535427]
[1769685864390,0.03402634,2929.3,2927.6,14.51535427]
[1769685864599,0.8874787,2929.3,2927.6,14.51535427]
[1769685865313,14.02846818,2929.3,2927.6,14.51535427]
[1769685865501,1.7442141,2929.2,2927.7,12.96458272]
[1769685865804,0.03402634,2928.9,2927.8,0.85388346]
[1769685866011,0.03402634,2928.9,2928.3,0.002]
[1769685868809,13.14098948,2929.0,2928.3,0.002]
[1769685868995,1.40285203,2928.9,2928.3,0.002]
[1769685869594,1.7442141,2929.2,2928.3,0.002]
[1769685870224,13.17501582,2929.1,2928.3,0.002]
[1769685871292,13.36632207,2928.9,2928.3,0.002]
[1769685871498,0.03402634,2928.7,2928.0,0.85581669]
[1769685872020,0.03402634,2928.7,2928.0,0.002]
[1769685872225,1.34003484,2928.7,2928.0,0.002]
[1769685872598,0.8875369,2929.1,2928.0,0.002]
[1769685872859,13.36632207,2928.9,2928.0,0.002]
[1769685873137,13.33229573,2928.4,2927.5,0.85395534]
[1769685873304,13.33229573,2928.2,2927.4,0.85399673]
[1769685873503,1.33663221,2928.1,2927.4,0.8539936]
[1769685873895,1.33663221,2928.1,2927.2,3.4162035]
[1769685873896,1.33663221,2928.1,2926.9,3.41856239]
[1769685874301,1.33663221,2928.1,2926.9,17.06965361]
[1769685875016,13.33229573,2928.8,2927.0,13.68525589]
[1769685875216,14.18589347,2928.8,2927.0,13.65109122]
[1769685875521,14.18589347,2928.8,2927.2,13.65109122]
[1769685875714,15.09231066,2928.7,2927.3,1.36852547]
[1769685876226,15.94595292,2928.7,2927.4,0.85400013]
[1769685876801,15.09231066,2928.7,2927.4,14.50509135]
[1769685877028,13.33229573,2929.0,2927.4,14.50509135]
[1769685877234,14.18582994,2929.0,2927.4,14.50509135]
[1769685878300,14.18582994,2929.0,2927.6,0.002]
[1769685880529,13.33229573,2928.8,2927.6,0.002]
[1769685881833,0.85353421,2929.0,2927.6,13.65309122]
[1769685882022,13.75905431,2928.9,2927.6,13.65309122]
[1769685882219,13.75905431,2928.9,2927.6,0.002]
[1769685882411,13.33229573,2928.5,2927.6,0.002]
[1769685884740,14.18599912,2928.5,2927.6,0.002]
[1769685885650,13.33229573,2928.3,2927.4,0.002]
[1769685885848,13.36632207,2927.9,2927.0,0.85411431]
[1769685886050,13.36632207,2927.9,2926.9,0.85612476]
[1769685886352,13.36632207,2927.9,2926.9,0.85614121]
[1769685886720,13.36632207,2927.9,2926.9,0.002]
[1769685886721,14.18617919,2927.8,2926.9,0.002]
[1769685886952,13.33229573,2927.6,2926.9,0.002]
[1769685887150,1.33663221,2927.5,2926.9,0.002]
[1769685887351,14.66892794,2927.5,2926.5,0.85426277]
[1769685888220,14.66892794,2927.5,2926.4,0.006]
[1769685888427,14.66892794,2927.5,2926.4,0.86027945]
[1769685888854,0.85400013,2927.4,2926.4,0.86027945]
[1769685889026,1.89389132,2927.3,2926.4,0.86027945]
[1769685889356,15.22618705,2927.3,2926.4,0.006]
[1769685890748,0.85405848,2927.2,2926.7,0.002]
[1769685892527,15.22618705,2927.3,2926.7,0.002]
[1769685892528,1.89389132,2927.3,2926.7,0.002]
[1769685892728,14.1860917,2928.1,2926.9,0.85414602]
[1769685893257,14.1860917,2928.1,2926.8,14.50524852]
[1769685893435,1.56975647,2928.3,2926.8,14.50524852]
[1769685893634,14.9020522,2928.3,2926.8,14.50524852]
[1769685893827,13.33229573,2928.1,2926.8,14.50524852]
[1769685894728,0.85382513,2928.0,2926.7,0.002]
[1769685894943,14.18612086,2928.0,2926.7,0.002]
[1769685898245,0.85376681,2928.2,2926.8,13.70958797]
[1769685898557,1.86834598,2928.1,2927.0,13.70958797]
[1769685899962,2.72215533,2928.1,2927.1,0.85408766]
[1769685900169,1.86834598,2928.1,2927.1,0.85408766]
[1769685900343,0.85468498,2928.5,2927.1,14.56367563]
[1769685900661,14.55331234,2928.5,2927.1,0.85408766]
[1769685901372,13.69862736,2928.3,2927.1,0.85408766]
[1769685901589,0.03402634,2928.4,2927.0,0.85410595]
[1769685901590,13.7326537,2928.1,2927.0,0.85410595]
[1769685902451,13.69862736,2927.9,2926.9,0.8541314]
[1769685903061,13.69521736,2927.9,2926.9,0.8561314]
[1769685903242,13.69621736,2927.9,2927.6,0.03379]
[1769685903450,13.69621736,2927.9,2927.6,0.02064731]
[1769685903661,1.45500425,2927.8,2927.6,0.02064731]
[1769685905572,2.30889385,2927.8,2927.6,0.02064731]
[1769685905778,1.45500425,2927.8,2927.6,0.02064731]
[1769685906555,0.85485661,2927.9,2927.6,0.02064731]
[1769685907567,0.001,2927.9,2927.6,0.02064731]
[1769685911068,0.85485429,2927.9,2926.9,3.41853895]
[1769685911274,7.18485429,2927.9,2926.9,3.41853895]
[1769685912054,0.85485429,2927.9,2927.0,13.70958797]
[1769685913145,13.69962736,2927.9,2926.9,0.002]
[1769685914577,13.69862736,2927.5,2926.6,0.002]
[1769685915397,13.69862736,2927.3,2926.6,0.002]
[1769685915594,14.41462736,2927.3,2926.6,0.002]
[1769685915797,13.69862736,2927.1,2926.6,0.002]
[1769685916148,13.69862736,2927.1,2925.7,0.002]
[1769685916381,13.69862736,2926.0,2924.3,13.70958797]
[1769685916696,5.63677086,2927.2,2925.3,13.70958797]
[1769685916697,13.69862736,2926.7,2925.3,13.70958797]
[1769685916986,14.68948326,2927.4,2925.7,13.70958797]
[1769685917204,0.03418818,2927.3,2926.5,13.70958797]
[1769685917401,0.001,2927.7,2926.7,13.70958797]
[1769685917402,0.03518818,2927.7,2926.7,13.70958797]
[1769685917548,0.001,2927.9,2927.0,13.70958797]
[1769685918500,0.03518818,2928.5,2926.7,0.03402634]
[1769685918501,0.001,2928.5,2927.4,13.70958797]
[1769685918789,0.03518818,2928.5,2927.4,13.70958797]
[1769685919496,0.03518818,2928.5,2927.5,0.85397096]
[1769685919700,0.001,2928.5,2927.5,0.85397096]
[1769685919863,0.03518818,2928.5,2927.5,0.85397096]
[1769685921422,0.29914297,2928.9,2927.6,13.70958797]
[1769685921702,0.29914297,2928.9,2928.2,13.70958797]
[1769685922409,0.29914297,2928.9,2927.7,13.70958797]
[1769685922569,0.03418818,2928.8,2927.7,13.70958797]
[1769685922924,0.85334645,2929.7,2928.1,13.70958797]
[1769685923075,0.03418818,2929.6,2928.2,15.0839494]
[1769685923275,0.03418818,2929.7,2928.4,13.70958797]
[1769685923487,14.5861474,2929.7,2928.3,0.85373766]
[1769685923690,13.69862736,2929.5,2928.3,0.85373766]
[1769685923900,13.73281554,2929.4,2927.8,13.70958797]
[1769685924113,0.03418818,2929.3,2928.2,0.85375942]
[1769685925474,0.88764127,2929.3,2928.1,17.10828954]
[1769685925675,1.45862686,2929.2,2928.1,17.10828954]
[1769685926288,0.03418818,2929.1,2928.1,17.10828954]
[1769685927785,0.88769928,2929.1,2927.9,0.85383398]
[1769685927983,0.57603441,2929.0,2928.0,0.85380378]
[1769685928203,0.03418818,2928.9,2928.1,0.85379292]
[1769685928601,0.57603441,2929.0,2928.3,0.002]
[1769685929111,0.01711693,2928.9,2928.3,0.002]
[1769685930292,0.8545111,2929.1,2928.3,0.002]
[1769685930293,0.001,2929.1,2928.3,0.002]
[1769685930913,0.01811693,2929.1,2928.3,0.002]
[1769685931609,0.001,2929.1,2928.3,0.002]
[1769685931807,0.001,2929.1,2928.3,0.85573766]
[1769685932014,0.001,2929.1,2928.3,16.61907302]
[1769685932515,0.01811693,2929.1,2928.3,16.61907302]
[1769685932802,0.001,2929.1,2928.3,14.79779814]
[1769685933011,0.01811693,2929.1,2928.3,14.79779814]
[1769685933211,0.001,2929.1,2928.3,14.79779814]
[1769685933414,0.01811693,2929.1,2928.3,14.79779814]
[1769685933616,0.001,2929.1,2928.3,14.79779814]
[1769685934014,0.001,2929.1,2928.5,13.94206048]
[1769685934582,0.001,2929.1,2928.5,15.42184029]
[1769685934979,0.01711693,2929.8,2928.6,13.94206048]
[1769685935697,0.87041877,2929.8,2928.6,13.94206048]
[1769685936216,0.87041877,2929.8,2928.7,14.79568154]
[1769685936419,0.01711693,2929.8,2928.7,14.79568154]
[1769685937217,0.01791693,2930.0,2928.7,16.71159216]
[1769685937951,0.0008,2930.0,2928.9,13.94206048]
[1769685938121,0.0008,2930.0,2929.1,13.94206048]
[1769685939491,0.0008,2930.0,2929.0,0.85353362]
[1769685940319,0.0008,2930.0,2929.0,15.56377436]
[1769685940485,0.01791693,2930.0,2929.0,15.56377436]
[1769685940687,6.33,2929.9,2928.9,0.85354065]
[1769685940886,0.01711693,2929.8,2929.0,0.85353355]
[1769685941115,0.001,2929.6,2929.0,0.85353355]
[1769685941728,0.001,2929.6,2928.9,0.85554419]
[1769685941903,0.001,2929.6,2928.9,0.002]
[1769685942335,0.01811693,2929.6,2928.9,0.002]
[1769685943026,13.54906417,2929.6,2928.9,0.002]
[1769685943234,14.97118663,2929.5,2928.9,0.002]
[1769685943427,0.01711693,2929.4,2928.9,0.002]
[1769685944140,14.38439345,2929.3,2928.6,0.002]
[1769685944360,0.01711693,2929.2,2928.6,0.002]
[1769685944657,1.44015104,2929.1,2928.6,0.002]
[1769685945151,0.85343346,2929.4,2928.6,0.002]
[1769685945325,1.44023939,2929.5,2928.6,13.94406048]
[1769685945526,0.87149977,2929.6,2928.6,13.94406048]
[1769685945739,0.87149977,2929.6,2928.6,0.002]
[1769685948424,0.01811693,2929.6,2928.6,0.002]
[1769685949061,0.87147657,2929.6,2928.6,0.002]
[1769685949925,14.40242381,2929.6,2928.6,0.002]
[1769685950238,1.78157673,2929.5,2928.6,0.002]
[1769685950440,0.01711693,2929.4,2928.6,0.002]
[1769685950624,0.87147657,2929.6,2928.6,0.002]
[1769685951138,0.01811693,2929.6,2928.6,13.94406048]
[1769685951537,0.01811693,2929.6,2928.6,0.002]
[1769685951538,14.40244497,2929.6,2928.6,0.002]
[1769685951750,15.31253369,2929.5,2928.6,0.002]
[1769685951959,0.01711693,2929.4,2928.6,0.002]
[1769685952172,0.8532138,2930.1,2928.7,13.94206048]
[1769685952356,0.30277483,2930.4,2929.3,13.94206048]
[1769685953230,0.001,2929.6,2929.3,13.94206048]
[1769685953431,0.001,2929.6,2929.4,1.39420605]
[1769685953667,0.30277483,2930.4,2929.5,13.94206048]
[1769685954456,0.30277483,2930.4,2929.6,0.85335882]
[1769685954661,14.68684998,2930.4,2928.9,13.94206048]
[1769685954861,14.68684998,2930.4,2929.3,0.85342746]
[1769685955050,14.68684998,2930.4,2929.4,0.85341534]
[1769685955435,14.68684998,2930.4,2929.5,0.85338741]
[1769685955631,14.68684998,2930.4,2929.4,0.85340158]
[1769685956671,14.68684998,2930.4,2929.0,13.9059187]
[1769685956870,14.68684998,2930.4,2929.1,1.73201378]
[1769685957043,14.68684998,2930.4,2929.1,14.78439886]
[1769685958734,14.68684998,2930.4,2929.2,0.85347535]
[1769685959658,13.67421974,2930.1,2929.1,0.85348901]
[1769685960508,13.67421974,2929.8,2928.8,0.002]
[1769685960668,13.67421974,2929.6,2928.9,0.85356137]
[1769685960988,13.67421974,2929.6,2928.8,0.002]
[1769685961368,14.52758121,2929.6,2928.8,0.002]
[1769685961563,13.67421974,2929.6,2928.8,0.002]
[1769685962398,0.85332975,2929.7,2928.8,0.002]
[1769685962610,0.85330056,2929.8,2928.8,0.002]
[1769685962757,2.08575203,2929.7,2928.8,0.002]
[1769685963474,2.93909373,2929.7,2928.8,0.002]
[1769685963700,16.61331347,2929.7,2928.8,0.002]
[1769685966665,15.75997177,2929.7,2928.8,0.002]
[1769685966874,1.66132908,2929.6,2928.8,0.002]
[1769685968487,2.51470653,2929.6,2928.8,0.002]
[1769685968685,16.18892627,2929.6,2928.8,0.002]
[1769685969206,1.66132908,2929.6,2928.8,0.002]
[1769685969375,2.93908687,2929.7,2928.8,0.002]
[1769685969577,2.08575203,2929.7,2928.8,0.002]
[1769685970210,2.93908416,2929.7,2928.8,0.002]
[1769685970976,2.08575203,2929.7,2928.8,0.002]
[1769685971175,2.08575203,2929.7,2928.8,13.05438508]
[1769685971478,2.08575203,2929.7,2928.9,13.08652759]
[1769685971687,2.08575203,2929.7,2928.9,13.05238508]
[1769685971878,6.33,2929.9,2929.0,13.05238508]
[1769685972788,6.33,2929.9,2929.2,13.05238508]
[1769685972993,6.3308,2930.0,2929.2,13.05238508]
[1769685974497,0.0008,2930.0,2929.1,0.85350448]
[1769685974896,0.0008,2930.0,2929.0,16.46640303]
[1769685975198,0.0008,2930.0,2929.0,18.54001609]
[1769685975900,0.0008,2930.0,2929.1,13.05238508]
[1769685976600,0.001,2929.8,2929.1,13.05238508]
[1769685977600,0.001,2929.8,2929.2,0.85347535]
[1769685980005,0.001,2929.8,2929.2,13.90586043]
[1769685980176,0.0008,2930.0,2929.4,13.05238508]
[1769685982014,0.0008,2930.0,2929.6,13.05238508]
[1769685985684,0.0008,2930.0,2929.7,0.85332969]
[1769685987214,0.0008,2930.0,2929.8,12.72385648]
[1769685987599,0.0008,2930.0,2929.7,0.85332969]
[1769685988031,0.0008,2930.0,2929.7,14.42290697]
[1769685988218,0.0008,2930.0,2929.8,12.7579885]
[1769685988520,0.0008,2930.0,2929.8,12.72385648]
[1769685988715,0.0008,2930.0,2929.9,0.03413085]
[1769685988919,0.0008,2930.0,2929.9,12.72385648]
[1769685990419,0.0008,2930.0,2929.9,13.57712792]
[1769685992422,0.0008,2930.0,2929.7,13.78109846]
[1769685992621,0.0008,2930.0,2929.8,1.41244187]
[1769685995322,0.0008,2930.0,2929.9,0.85327144]
[1769685996504,0.0008,2930.0,2929.9,0.88740229]
[1769685997421,0.0008,2930.0,2929.9,0.85327144]
[1769686000830,0.30277483,2930.4,2929.9,0.88740229]
[1769686001004,0.30277483,2930.4,2929.9,2.90478287]
[1769686002009,0.30277483,2930.4,2929.9,16.65175048]
[1769686002203,1e-08,2930.4,2929.9,16.65175048]
[1769686003198,1e-08,2930.4,2930.0,0.03412969]
[1769686004041,1e-08,2930.4,2930.1,0.8532132]
[1769686004334,1e-08,2930.4,2930.2,0.03412736]
[1769686006235,1e-08,2930.4,2930.2,0.88731017]
[1769686006440,1e-08,2930.4,2930.2,0.85318281]
[1769686006615,1e-08,2930.4,2930.2,1.27978526]
[1769686007137,1e-08,2930.4,2930.2,15.06088372]
[1769686007348,13.04658833,2931.1,2930.2,15.06088372]
[1769686008232,13.04658833,2931.1,2930.2,14.63428127]
[1769686008626,13.09558832,2930.8,2929.6,0.002]
[1769686008933,13.09558832,2930.6,2929.6,0.03613435]
[1769686009638,13.09558832,2930.6,2929.6,13.81723281]
[1769686009838,15.23906872,2930.6,2929.6,15.59170827]
[1769686010031,15.23906872,2930.6,2930.5,0.00199541]
[1769686010217,15.23906872,2930.6,2929.6,0.002]
[1769686010425,15.23906872,2930.6,2929.7,13.78109846]
[1769686010614,15.23906872,2930.6,2929.9,0.85327144]
[1769686013140,15.23906872,2930.6,2929.7,0.85332969]
[1769686013857,13.09558832,2930.6,2929.8,0.03413202]
[1769686014156,13.09558832,2930.6,2929.6,0.8553375]
[1769686014157,13.09558832,2930.5,2929.6,0.8553375]
[1769686016143,13.09558832,2930.5,2929.6,0.002]
[1769686021547,13.05656063,2930.6,2929.6,13.10395581]
[1769686021850,14.36221669,2930.5,2929.6,0.002]
[1769686022424,14.36221669,2930.5,2929.6,13.10395581]
[1769686025173,13.05656063,2929.1,2928.3,0.002]
[1769686025327,13.05656063,2928.7,2928.1,0.85379111]
[1769686025526,13.05656063,2928.7,2928.4,0.002]
[1769686025752,13.05656063,2928.7,2928.0,0.85580623]
[1769686025960,8.33921565,2928.8,2928.0,0.85580623]
[1769686026130,8.33921565,2928.8,2928.0,0.002]
[1769686026131,23.53535391,2928.8,2928.0,0.002]
[1769686027534,24.38895074,2928.8,2928.0,0.002]
[1769686028044,23.53535391,2928.8,2928.0,0.002]
[1769686029151,10.47879328,2928.8,2928.0,0.002]
[1769686029330,0.715,2929.0,2928.0,13.10395581]
[1769686029531,8.33921565,2928.8,2928.0,0.002]
[1769686029760,13.05656063,2928.7,2928.0,0.002]
[1769686030529,8.33921565,2928.5,2928.0,0.002]
[1769686030739,21.39577628,2928.2,2927.6,0.002]
[1769686031261,21.39577628,2928.2,2927.5,0.002]
[1769686031262,8.33921565,2928.5,2927.5,0.002]
[1769686031431,0.715,2928.4,2927.5,13.10395581]
[1769686031942,13.77156063,2928.4,2927.5,13.10395581]
[1769686032154,15.57554603,2928.4,2927.5,0.002]
[1769686032554,14.86054603,2928.4,2927.5,0.002]
[1769686034173,14.86054603,2928.4,2927.0,0.85408766]
[1769686034174,0.03402634,2927.6,2925.3,13.10195581]
[1769686034332,0.03402634,2926.7,2925.4,4.03418335]
[1769686034532,13.09058697,2926.5,2925.3,14.41215139]
[1769686035036,13.09058697,2926.5,2925.3,15.26676208]
[1769686035237,0.03402634,2926.0,2925.3,15.2667604]
[1769686035436,0.03402634,2926.4,2925.3,15.26676176]
[1769686035673,0.03402634,2926.1,2924.7,3.41906637]
[1769686035964,0.03402634,2925.9,2924.9,0.85472918]
[1769686036269,0.03402634,2925.6,2924.1,13.95689876]
[1769686036467,0.03402634,2925.6,2923.4,0.00364093]
[1769686036468,0.03402634,2925.4,2924.4,0.85485912]
[1769686036633,0.03402634,2925.4,2924.5,0.85482795]
[1769686036833,0.03402634,2925.4,2924.3,13.10195581]
[1769686037033,0.03402634,2925.4,2924.4,0.85485594]
[1769686037343,1.04609241,2925.5,2924.5,3.41936447]
[1769686037542,1.04609241,2925.5,2924.4,13.10195581]
[1769686037743,1.04609241,2925.5,2924.5,0.85482886]
[1769686037944,1.04609241,2925.5,2924.2,0.002]
[1769686038152,1.04609241,2925.5,2924.5,0.85484301]
[1769686038362,13.09058697,2925.4,2924.2,3.4217383]
[1769686038532,0.03402634,2925.2,2924.4,0.85487093]
[1769686038741,13.05656063,2925.1,2924.2,0.002]
[1769686038945,1.34648767,2925.2,2924.2,0.002]
[1769686039145,1.31246133,2925.2,2924.2,0.002]
[1769686039366,1.04609241,2925.5,2924.5,13.95679745]
[1769686040336,13.05656063,2926.4,2924.6,13.10195581]
[1769686040655,0.85423501,2926.6,2924.6,13.10195581]
[1769686040856,0.03402634,2926.5,2924.6,13.10195581]
[1769686041057,1.31020584,2926.5,2924.8,13.10195581]
[1769686042357,2.13044626,2926.5,2925.0,13.10195581]
[1769686042550,0.88825964,2926.7,2925.0,13.10195581]
[1769686042746,13.94482027,2926.7,2925.0,13.10195581]
[1769686042952,0.03402634,2926.5,2925.0,13.10195581]
[1769686044375,0.88830379,2926.5,2925.0,16.44601548]
[1769686044553,0.88830379,2926.5,2925.1,13.95662744]
[1769686044752,0.88830379,2926.5,2925.2,1.7375314]
[1769686045174,0.88829557,2926.5,2925.2,14.8575292]
[1769686045359,0.88824915,2926.7,2925.2,14.8575292]
[1769686046445,13.45540711,2926.2,2924.4,13.1199978]
[1769686046640,13.42138077,2925.9,2924.9,0.85472654]
[1769686047072,13.42138077,2925.9,2924.8,0.85473864]
[1769686047371,13.42138077,2925.9,2924.9,0.8547179]
[1769686047570,13.42138077,2925.9,2924.8,0.85473747]
[1769686047571,1.34554071,2925.8,2924.8,0.85473747]
[1769686047753,1.34554071,2925.8,2924.9,0.85472038]
[1769686047949,1.34554071,2925.8,2924.7,3.41911689]
[1769686047950,1.34554071,2925.8,2925.0,0.85468185]
[1769686048151,1.34554071,2925.8,2925.1,0.85467131]
[1769686048470,0.8543808,2926.1,2924.9,13.1199978]
[1769686048687,13.42138077,2926.3,2924.9,13.1199978]
[1769686048973,0.85423358,2926.6,2924.9,13.1199978]
[1769686049174,1.77264972,2926.5,2925.1,13.1199978]
[1769686049871,1.77364972,2926.5,2925.1,13.1199978]
[1769686050074,0.001,2926.5,2925.1,13.1199978]
[1769686050474,0.001,2926.5,2925.2,0.85464241]
[1769686050656,0.001,2926.5,2925.3,13.1199978]
[1769686052568,0.001,2926.5,2925.4,0.85458398]
[1769686053748,0.001,2926.5,2925.4,14.4683807]
[1769686053949,0.001,2926.5,2925.5,1.74179036]
[1769686054778,0.001,2926.5,2925.6,0.85452556]
[1769686056353,0.001,2926.5,2925.6,14.46832228]
[1769686057166,13.63227871,2926.5,2925.6,0.85452556]
[1769686057371,1.36322787,2926.4,2925.6,0.85452556]
[1769686058871,1.36322787,2926.4,2925.2,17.03234411]
[1769686059076,2.21752105,2926.4,2925.3,0.8546132]
[1769686059670,15.84879976,2926.4,2925.3,0.8546132]
[1769686060461,15.8828261,2926.4,2925.2,0.85462655]
[1769686060661,13.63127871,2926.2,2925.2,0.85462655]
[1769686061200,14.48565825,2926.1,2925.0,0.002]
[1769686061503,14.51968459,2926.1,2925.0,0.002]
[1769686061703,13.63127871,2925.9,2925.0,0.002]